[Event "Hungarian Youth-ch U10 2022"]
[Site "Eger"]
[Date "2022.07.23"]
[Round "1.1"]
[White "Szollosi, Balazs"]
[Black "Morovan-Szabo, Lorinc"]
[Result "0-1"]
[ECO "C54"]
[WhiteElo "1423"]
[BlackElo "1232"]
[Annotator "NA RC COMBH"]
[PlyCount "94"]
[EventDate "2022.07.21"]
[EventType "tourn"]
[EventCountry "HUN"]
[SourceTitle "playchess.com"]
[Source "ChessBase"]
[SourceQuality "1"]
[TimeControl "40/5400+30:1800+30"]

1. e4 {[%emt 0:00:32]} e5 {[%emt 0:00:51]} 2. Nf3 {[%emt 0:00:08]} Nc6 {[%emt 0:00:07]} 3. Bc4 {[%emt 0:00:07]} Bc5 {[%emt 0:00:59]} 4. c3 {[%emt 0:00:26]} Nf6 {[%emt 0:00:32]} 5. d4 {[%emt 0:00:09]} exd4 {[%emt 0:00:46]} 6. cxd4 {[%emt 0:00:08]} Bb4+ {[%emt 0:00:39]} 7. Bd2 {[%emt 0:00:10]} Bxd2+ {[%emt 0:00:54]} 8. Nbxd2 {[%emt 0:00:10]} d6 {[%emt 0:01:58]} 9. O-O {[%emt 0:00:22]} O-O {[%emt 0:00:12]} 10. Re1 {[%emt 0:00:34]} Bg4 {[%emt 0:03:31]} 11. Qb3 {[%emt 0:02:21]} Na5 {[%emt 0:00:39]} 12. Qc2 {[%emt 0:01:36]} Nxc4 {[%emt 0:00:20]} 13. Qxc4 {[%emt 0:00:15]} Re8 {[%emt 0:00:28]} 14. e5 {[%emt 0:01:49]} Be6 {[%emt 0:04:20]} 15. Qc2 {[%emt 0:01:09]} Nd5 {[%emt 0:01:11]} 16. Ne4 {[%emt 0:01:38]} h6 {[%emt 0:00:25]} 17. Nc3 {[%emt 0:01:52]} Nb4 {[%emt 0:01:17]} 18. Qd1 {[%emt 0:01:12]} Nd5 {[%emt 0:01:36]} 19. exd6 {[%emt 0:00:44]} cxd6 {[%emt 0:00:51]} 20. Nxd5 {[%emt 0:00:55]} Bxd5 {[%emt 0:00:29]} 21. Rxe8+ {[%emt 0:00:17]} Qxe8 {[%emt 0:00:20]} 22. Qe1 {[%emt 0:01:26]} Bxf3 {[%emt 0:00:43]} 23. Qxe8+ {[%emt 0:00:47]} Rxe8 {[%emt 0:00:14]} 24. gxf3 {[%emt 0:00:07]} Re2 {[%emt 0:00:18]} 25. Rc1 {[%emt 0:01:22]} Rxb2 {[%emt 0:00:17]} 26. Rc8+ {[%emt 0:00:14]} Kh7 {[%emt 0:00:13]} 27. Rc7 {[%emt 0:00:22]} Kg6 {[%emt 0:00:20]} 28. Rd7 {[%emt 0:00:19]} Rb6 {[%emt 0:00:16]} 29. a4 {[%emt 0:02:27]} Kf6 {[%emt 0:00:46]} 30. a5 {[%emt 0:00:20]} Ra6 {[%emt 0:00:09]} 31. Rxb7 {[%emt 0:00:27]} Rxa5 {[%emt 0:00:30]} 32. Rb4 {[%emt 0:01:34]} Ra1+ {[%emt 0:00:11]} 33. Kg2 {[%emt 0:00:19]} a5 {[%emt 0:00:10]} 34. Rb5 {[%emt 0:00:35]} a4 {[%emt 0:00:19]} 35. Ra5 {[%emt 0:01:24]} a3 {[%emt 0:00:13]} 36. h4 {[%emt 0:01:02]} a2 {[%emt 0:00:21]} 37. f4 {[%emt 0:05:36]} d5 {[%emt 0:01:13]} 38. Kf3 {[%emt 0:01:44]} Ke7 {[%emt 0:01:17]} 39. Ra6 {[%emt 0:01:28]} Kd7 {[%emt 0:00:14]} 40. Ra5 {[%emt 0:00:00]} Kc6 {[%emt 0:00:00]} 41. Ra8 {[%emt 0:03:40]} Kb5 {[%emt 0:00:32]} 42. f5 {[%emt 0:01:26]} Kc4 {[%emt 0:01:34]} 43. Ra4+ {[%emt 0:00:39]} Kb3 {[%emt 0:00:16]} 44. Ra8 {[%emt 0:00:24]} Rb1 {[%emt 0:00:18]} 45. Rb8+ {[%emt 0:04:00]} Kc4 {[%emt 0:00:15]} 46. Rc8+ {[%emt 0:00:09]} Kb5 {[%emt 0:00:08]} 47. Rb8+ {[%emt 0:00:44]} Kc6 {[%emt 0:00:10]} 0-1

[Event "Hungarian Youth-ch U10 2022"]
[Site "Eger"]
[Date "2022.07.23"]
[Round "1.2"]
[White "Hegedus, Bernat"]
[Black "Molnar-Saska, Tamas"]
[Result "0-1"]
[ECO "A52"]
[WhiteElo "1491"]
[BlackElo "1455"]
[Annotator "NA RC COMBH"]
[PlyCount "104"]
[EventDate "2022.07.21"]
[EventType "tourn"]
[EventCountry "HUN"]
[SourceTitle "playchess.com"]
[Source "ChessBase"]
[SourceQuality "1"]
[TimeControl "40/5400+30:1800+30"]

1. d4 {[%emt 0:00:33]} Nf6 {[%emt 0:00:39]} 2. c4 {[%emt 0:00:10]} e5 {[%emt 0:00:06]} 3. dxe5 {[%emt 0:00:09]} Ng4 {[%emt 0:00:06]} 4. Nf3 {[%emt 0:00:53]} Bc5 {[%emt 0:01:05]} 5. e3 {[%emt 0:00:29]} Nc6 {[%emt 0:00:15]} 6. Nc3 {[%emt 0:02:27]} Ncxe5 {[%emt 0:00:37]} 7. Be2 {[%emt 0:05:43]} O-O {[%emt 0:01:46]} 8. O-O {[%emt 0:02:55]} d6 {[%emt 0:01:33]} 9. b3 {[%emt 0:04:37]} Nxf3+ {[%emt 0:01:30]} 10. Bxf3 {[%emt 0:00:57]} Ne5 {[%emt 0:00:16]} 11. Be4 {[%emt 0:01:26]} c6 {[%emt 0:05:37]} 12. Re1 {[%emt 0:08:27]} Bb4 {[%emt 0:00:57]} 13. Qc2 {[%emt 0:00:46]} f5 {[%emt 0:03:10]} 14. Bd3 {[%emt 0:00:37]} Qf6 {[%emt 0:01:51]} 15. Bb2 {[%emt 0:00:23]} Nxd3 {[%emt 0:01:48]} 16. Qxd3 {[%emt 0:01:01]} Qh6 {[%emt 0:05:16]} 17. Rad1 {[%emt 0:04:17]} f4 {[%emt 0:06:08]} 18. exf4 {[%emt 0:00:34]} Qxf4 {[%emt 0:00:57]} 19. Re2 {[%emt 0:00:30]} Bc5 {[%emt 0:02:46]} 20. Rf1 {[%emt 0:02:11]} Bg4 {[%emt 0:04:36]} 21. Rd2 {[%emt 0:05:10]} Rae8 {[%emt 0:01:14]} 22. a3 {[%emt 0:04:12]} a6 {[%emt 0:02:38]} 23. b4 {[%emt 0:00:33]} Ba7 {[%emt 0:02:01]} 24. Qxd6 {[%emt 0:02:01]} Bxf2+ {[%emt 0:00:59]} 25. Kh1 {[%emt 0:00:56]} Bc5 {[%emt 0:01:24]} 26. Qxf4 {[%emt 0:02:10]} Rxf4 {[%emt 0:01:15]} 27. Rb1 {[%emt 0:01:07]} Be3 {[%emt 0:02:12]} 28. Rd6 {[%emt 0:01:22]} Ref8 {[%emt 0:04:53]} 29. h3 {[%emt 0:00:39]} Rf1+ {[%emt 0:00:05]} 30. Rxf1 {[%emt 0:00:10]} Rxf1+ {[%emt 0:00:13]} 31. Kh2 {[%emt 0:00:05]} Bf4+ {[%emt 0:00:06]} 32. g3 {[%emt 0:00:08]} Bxd6 {[%emt 0:00:10]} 33. hxg4 {[%emt 0:00:08]} Rf2+ {[%emt 0:00:21]} 34. Kh3 {[%emt 0:00:06]} Rxb2 {[%emt 0:00:10]} 35. Ne4 {[%emt 0:00:08]} Be5 {[%emt 0:00:57]} 36. Nc5 {[%emt 0:00:03]} b6 {[%emt 0:01:51]} 37. Nd7 {[%emt 0:00:06]} Bc7 {[%emt 0:00:32]} 38. c5 {[%emt 0:00:33]} b5 {[%emt 0:00:17]} 39. Nb6 {[%emt 0:00:07]} Bxb6 {[%emt 0:00:13]} 40. cxb6 {[%emt 0:00:00]} Rd2 {[%emt 0:00:00]} 41. a4 {[%emt 0:00:27]} bxa4 {[%emt 0:00:27]} 42. b5 {[%emt 0:00:09]} axb5 {[%emt 0:00:10]} 43. Kh4 {[%emt 0:00:12]} h6 {[%emt 0:00:44]} 44. Kh3 {[%emt 0:00:08]} a3 {[%emt 0:00:23]} 45. g5 {[%emt 0:00:18]} a2 {[%emt 0:00:20]} 46. b7 {[%emt 0:00:09]} Rd8 {[%emt 0:00:42]} 47. gxh6 {[%emt 0:00:06]} gxh6 {[%emt 0:00:52]} 48. g4 {[%emt 0:00:11]} a1=Q 49. g5 Qc3+ {[%emt 0:01:58]} 50. Kh4 {[%emt 0:00:40]} Rd4+ {[%emt 0:00:45]} 51. Kh5 {[%emt 0:00:14]} Qh3+ {[%emt 0:00:19]} 52. Kg6 {[%emt 0:00:12]} Rd6# {[%emt 0:00:02]} 0-1

[Event "Hungarian Youth-ch U10 2022"]
[Site "Eger"]
[Date "2022.07.23"]
[Round "1.3"]
[White "Hangay, Oliver"]
[Black "Meszaros-Csonka, David"]
[Result "1/2-1/2"]
[ECO "B29"]
[WhiteElo "1695"]
[BlackElo "1361"]
[Annotator "NA RC COMBH"]
[PlyCount "45"]
[EventDate "2022.07.21"]
[EventType "tourn"]
[EventCountry "HUN"]
[SourceTitle "playchess.com"]
[Source "ChessBase"]
[SourceQuality "1"]
[TimeControl "40/5400+30:1800+30"]

1. e4 {[%emt 0:00:48]} c5 {[%emt 0:00:52]} 2. Nf3 {[%emt 0:00:11]} Nf6 {[%emt 0:00:26]} 3. Nc3 {[%emt 0:05:09]} d5 {[%emt 0:01:16]} 4. exd5 {[%emt 0:04:32]} Nxd5 {[%emt 0:01:04]} 5. Bb5+ {[%emt 0:03:18]} Bd7 {[%emt 0:02:03]} 6. Bxd7+ {[%emt 0:02:07]} Qxd7 {[%emt 0:00:22]} 7. O-O {[%emt 0:03:54]} Nc6 {[%emt 0:02:41]} 8. Ne4 {[%emt 0:07:02]} e6 {[%emt 0:02:39]} 9. b3 {[%emt 0:05:00]} Be7 {[%emt 0:04:28]} 10. Bb2 {[%emt 0:06:01]} O-O {[%emt 0:03:49]} 11. d4 {[%emt 0:05:38]} cxd4 {[%emt 0:09:54]} 12. Nxd4 {[%emt 0:02:00]} Rfd8 {[%emt 0:06:22]} 13. Nxc6 {[%emt 0:13:18]} Qxc6 {[%emt 0:09:56]} 14. Qg4 {[%emt 0:05:09]} Bf8 {[%emt 0:09:42]} 15. c4 {[%emt 0:03:31]} Ne7 {[%emt 0:05:38]} 16. Ng5 {[%emt 0:04:51]} h6 {[%emt 0:08:03]} 17. Nf3 {[%emt 0:02:08]} Nf5 {[%emt 0:06:23]} 18. Rad1 {[%emt 0:02:29]} Qb6 {[%emt 0:06:32]} 19. Nh4 {[%emt 0:06:00]} Nxh4 {[%emt 0:04:56]} 20. Qxh4 {[%emt 0:00:08]} Qc7 {[%emt 0:02:07]} 21. Qg4 {[%emt 0:02:15]} Rxd1 {[%emt 0:01:46]} 22. Rxd1 {[%emt 0:01:36]} Rd8 {[%emt 0:00:31]} 23. Ra1 1/2-1/2

[Event "Hungarian Youth-ch U10 2022"]
[Site "Eger"]
[Date "2022.07.23"]
[Round "1.4"]
[White "Hegedus, Zsombor"]
[Black "Minga-Nagy, Abel Inti"]
[Result "1/2-1/2"]
[ECO "B54"]
[WhiteElo "1348"]
[BlackElo "1540"]
[Annotator "NA RC COMBH"]
[PlyCount "80"]
[EventDate "2022.07.21"]
[EventType "tourn"]
[EventCountry "HUN"]
[SourceTitle "playchess.com"]
[Source "ChessBase"]
[SourceQuality "1"]
[TimeControl "40/5400+30:1800+30"]

1. e4 {[%emt 0:00:33]} c5 {[%emt 0:00:37]} 2. Nf3 {[%emt 0:00:07]} d6 {[%emt 0:00:07]} 3. d4 {[%emt 0:00:26]} cxd4 {[%emt 0:00:13]} 4. Nxd4 {[%emt 0:00:21]} Nf6 {[%emt 0:00:10]} 5. f3 {[%emt 0:00:35]} e5 {[%emt 0:01:19]} 6. Nb3 {[%emt 0:00:33]} Be6 {[%emt 0:01:07]} 7. c4 {[%emt 0:01:39]} Nbd7 {[%emt 0:02:29]} 8. Be3 {[%emt 0:02:48]} Be7 {[%emt 0:01:28]} 9. Be2 {[%emt 0:01:26]} O-O {[%emt 0:02:20]} 10. O-O {[%emt 0:02:01]} Nb6 {[%emt 0:06:12]} 11. N3d2 {[%emt 0:05:58]} Rc8 {[%emt 0:02:10]} 12. b3 {[%emt 0:03:07]} a5 {[%emt 0:01:10]} 13. Nc3 {[%emt 0:01:11]} Nh5 {[%emt 0:01:55]} 14. Nd5 {[%emt 0:03:03]} Bxd5 {[%emt 0:01:22]} 15. cxd5 {[%emt 0:02:03]} f5 {[%emt 0:01:33]} 16. Nc4 {[%emt 0:03:27]} Nxc4 {[%emt 0:02:02]} 17. bxc4 {[%emt 0:02:31]} f4 {[%emt 0:01:46]} 18. Bf2 {[%emt 0:01:35]} Bh4 {[%emt 0:01:00]} 19. Qe1 {[%emt 0:06:55]} Bxf2+ {[%emt 0:00:49]} 20. Qxf2 {[%emt 0:02:10]} Nf6 {[%emt 0:01:57]} 21. Rab1 {[%emt 0:01:56]} Qc7 {[%emt 0:01:39]} 22. Qb6 {[%emt 0:01:24]} Rf7 {[%emt 0:01:14]} 23. Rb5 {[%emt 0:01:16]} a4 24. Rfb1 Rb8 {[%emt 0:08:23]} 25. Qxc7 {[%emt 0:04:37]} Rxc7 {[%emt 0:00:10]} 26. R5b4 {[%emt 0:00:58]} Nd7 {[%emt 0:02:17]} 27. Bd1 {[%emt 0:09:27]} Nc5 {[%emt 0:01:59]} 28. Bxa4 {[%emt 0:02:52]} Ra8 29. Bb3 g5 {[%emt 0:02:45]} 30. a4 {[%emt 0:04:22]} h5 {[%emt 0:01:09]} 31. Bc2 {[%emt 0:01:23]} Kf7 {[%emt 0:01:44]} 32. Kf2 {[%emt 0:01:42]} Ra7 {[%emt 0:01:05]} 33. g3 {[%emt 0:04:03]} Na6 {[%emt 0:01:22]} 34. Rb6 {[%emt 0:02:22]} Rxc4 {[%emt 0:00:39]} 35. Rxb7+ {[%emt 0:00:55]} Rxb7 {[%emt 0:00:07]} 36. Rxb7+ {[%emt 0:00:14]} Kf6 {[%emt 0:00:23]} 37. Bd3 {[%emt 0:00:53]} Rxa4 {[%emt 0:00:47]} 38. Ra7 Ra2+ 39. Kf1 Nb4 40. Rxa2 Nxa2 1/2-1/2

[Event "Hungarian Youth-ch U10 2022"]
[Site "Eger"]
[Date "2022.07.23"]
[Round "1.5"]
[White "Brieber, Benedek"]
[Black "Papai, Mate"]
[Result "0-1"]
[ECO "B23"]
[WhiteElo "1369"]
[BlackElo "1385"]
[Annotator "NA RC COMBH"]
[PlyCount "102"]
[EventDate "2022.07.21"]
[EventType "tourn"]
[EventCountry "HUN"]
[SourceTitle "playchess.com"]
[Source "ChessBase"]
[SourceQuality "1"]
[TimeControl "40/5400+30:1800+30"]

1. e4 {[%emt 0:00:37]} c5 {[%emt 0:00:34]} 2. Nc3 {[%emt 0:00:22]} e6 {[%emt 0:00:04]} 3. Bc4 {[%emt 0:00:26]} a6 {[%emt 0:00:06]} 4. a4 {[%emt 0:00:39]} Nc6 {[%emt 0:00:22]} 5. Nf3 {[%emt 0:00:59]} Nge7 {[%emt 0:00:32]} 6. O-O {[%emt 0:01:18]} d5 {[%emt 0:00:22]} 7. exd5 {[%emt 0:01:32]} exd5 {[%emt 0:00:02]} 8. Be2 {[%emt 0:01:55]} Ng6 {[%emt 0:00:52]} 9. d4 {[%emt 0:02:06]} c4 {[%emt 0:00:51]} 10. Re1 {[%emt 0:00:26]} Be7 {[%emt 0:00:17]} 11. Ne5 {[%emt 0:06:14]} Be6 {[%emt 0:02:00]} 12. Nxc6 {[%emt 0:00:39]} bxc6 {[%emt 0:00:13]} 13. Bg4 {[%emt 0:01:48]} Bxg4 {[%emt 0:01:43]} 14. Qxg4 {[%emt 0:00:15]} O-O {[%emt 0:00:14]} 15. Ne2 {[%emt 0:10:13]} Rb8 {[%emt 0:02:17]} 16. Rb1 {[%emt 0:02:41]} Qa5 {[%emt 0:00:37]} 17. Nc3 {[%emt 0:01:49]} Bb4 {[%emt 0:00:38]} 18. Bd2 {[%emt 0:01:48]} Bxc3 {[%emt 0:00:46]} 19. Bxc3 {[%emt 0:00:05]} Qxa4 {[%emt 0:00:05]} 20. Rbc1 {[%emt 0:03:27]} f5 {[%emt 0:04:29]} 21. Qg5 {[%emt 0:01:07]} f4 {[%emt 0:01:57]} 22. f3 {[%emt 0:01:26]} Rfd8 {[%emt 0:02:51]} 23. Re2 {[%emt 0:04:11]} c5 {[%emt 0:06:03]} 24. Rce1 {[%emt 0:00:45]} Qd7 {[%emt 0:05:24]} 25. h4 {[%emt 0:02:40]} Qf7 {[%emt 0:08:09]} 26. h5 {[%emt 0:01:43]} Nh8 {[%emt 0:01:08]} 27. Re7 {[%emt 0:01:03]} Qf6 {[%emt 0:00:11]} 28. Qxf6 {[%emt 0:00:40]} gxf6 {[%emt 0:00:08]} 29. Ba5 {[%emt 0:02:06]} Rdc8 {[%emt 0:00:51]} 30. Bc3 {[%emt 0:04:42]} Nf7 {[%emt 0:05:34]} 31. dxc5 {[%emt 0:00:24]} Ne5 {[%emt 0:05:03]} 32. Bxe5 {[%emt 0:02:35]} fxe5 {[%emt 0:00:09]} 33. R7xe5 {[%emt 0:00:24]} Rxc5 {[%emt 0:01:05]} 34. Rd1 {[%emt 0:03:44]} Rxb2 {[%emt 0:00:35]} 35. Rexd5 {[%emt 0:01:19]} Rxd5 {[%emt 0:00:07]} 36. Rxd5 {[%emt 0:00:09]} Rxc2 {[%emt 0:00:03]} 37. Rc5 {[%emt 0:00:26]} c3 {[%emt 0:00:13]} 38. Kf1 {[%emt 0:00:52]} Kf7 {[%emt 0:02:26]} 39. Rf5+ {[%emt 0:00:47]} Ke6 {[%emt 0:00:39]} 40. Rxf4 {[%emt 0:00:00]} Ra2 {[%emt 0:00:00]} 41. Re4+ {[%emt 0:01:07]} Kd5 {[%emt 0:00:45]} 42. Re2 {[%emt 0:00:50]} c2 {[%emt 0:00:13]} 43. Re1 {[%emt 0:01:03]} Rb2 {[%emt 0:00:04]} 44. Rc1 {[%emt 0:03:01]} Rb1 {[%emt 0:00:02]} 45. Ke2 {[%emt 0:00:07]} Rxc1 {[%emt 0:00:07]} 46. Kd2 {[%emt 0:00:02]} Rg1 {[%emt 0:00:08]} 47. Kxc2 {[%emt 0:00:27]} Rxg2+ {[%emt 0:00:09]} 48. Kb3 {[%emt 0:00:09]} Rg3 {[%emt 0:00:07]} 49. Ka4 {[%emt 0:00:04]} Rxf3 {[%emt 0:00:06]} 50. Ka5 {[%emt 0:00:14]} Kc6 {[%emt 0:00:10]} 51. Ka4 {[%emt 0:00:08]} Rf5 {[%emt 0:00:08]} 0-1

[Event "Hungarian Youth-ch U10 2022"]
[Site "Eger"]
[Date "2022.07.24"]
[Round "2.1"]
[White "Morovan-Szabo, Lorinc"]
[Black "Papai, Mate"]
[Result "1-0"]
[ECO "B49"]
[WhiteElo "1232"]
[BlackElo "1385"]
[Annotator "NA RC COMBH"]
[PlyCount "107"]
[EventDate "2022.07.21"]
[EventType "tourn"]
[EventCountry "HUN"]
[SourceTitle "playchess.com"]
[Source "ChessBase"]
[SourceQuality "1"]
[TimeControl "40/5400+30:1800+30"]

1. e4 {[%emt 0:00:35]} c5 {[%emt 0:00:35]} 2. Nf3 {[%emt 0:00:32]} e6 {[%emt 0:00:08]} 3. d4 {[%emt 0:00:35]} cxd4 {[%emt 0:00:05]} 4. Nxd4 {[%emt 0:00:22]} Nc6 {[%emt 0:00:17]} 5. Be3 {[%emt 0:00:57]} Qc7 {[%emt 0:00:32]} 6. Nc3 {[%emt 0:00:28]} a6 {[%emt 0:00:17]} 7. Be2 {[%emt 0:00:43]} Nf6 {[%emt 0:00:38]} 8. f4 {[%emt 0:00:33]} Bb4 {[%emt 0:01:07]} 9. Bf3 {[%emt 0:01:30]} d6 {[%emt 0:01:23]} 10. O-O {[%emt 0:01:26]} O-O {[%emt 0:01:57]} 11. Nxc6 {[%emt 0:00:31]} bxc6 {[%emt 0:00:22]} 12. Qd3 {[%emt 0:01:18]} a5 {[%emt 0:02:29]} 13. a3 {[%emt 0:00:27]} Ba6 {[%emt 0:00:41]} 14. Qd2 {[%emt 0:03:04]} Bxc3 {[%emt 0:00:54]} 15. Qxc3 {[%emt 0:00:05]} Bxf1 {[%emt 0:00:09]} 16. Rxf1 {[%emt 0:00:20]} d5 {[%emt 0:00:45]} 17. e5 {[%emt 0:02:15]} Nd7 {[%emt 0:00:55]} 18. g4 {[%emt 0:00:51]} Rac8 {[%emt 0:00:56]} 19. h4 {[%emt 0:00:41]} c5 {[%emt 0:00:30]} 20. Bd2 {[%emt 0:00:21]} d4 {[%emt 0:01:23]} 21. Qxa5 {[%emt 0:00:46]} Qxa5 {[%emt 0:00:08]} 22. Bxa5 {[%emt 0:00:14]} f6 {[%emt 0:00:52]} 23. exf6 {[%emt 0:00:49]} Rxf6 {[%emt 0:02:52]} 24. Be4 {[%emt 0:01:32]} Rcf8 {[%emt 0:01:12]} 25. Bd2 {[%emt 0:01:26]} c4 {[%emt 0:03:15]} 26. a4 {[%emt 0:01:06]} Nc5 {[%emt 0:01:24]} 27. Bc6 {[%emt 0:01:37]} d3 {[%emt 0:01:40]} 28. Rc1 {[%emt 0:05:26]} Rc8 {[%emt 0:02:24]} 29. Bg2 {[%emt 0:01:57]} Nxa4 {[%emt 0:01:32]} 30. cxd3 {[%emt 0:00:35]} Nxb2 {[%emt 0:00:36]} 31. Bf1 {[%emt 0:01:20]} Rg6 {[%emt 0:05:53]} 32. g5 {[%emt 0:00:34]} c3 {[%emt 0:00:29]} 33. h5 {[%emt 0:00:27]} Rc5 {[%emt 0:13:00]} 34. Be3 {[%emt 0:01:10]} Rgxg5+ {[%emt 0:01:16]} 35. fxg5 {[%emt 0:00:27]} Re5 {[%emt 0:00:22]} 36. Kf2 {[%emt 0:01:12]} c2 {[%emt 0:00:31]} 37. Be2 {[%emt 0:01:13]} Rf5+ {[%emt 0:01:14]} 38. Ke1 {[%emt 0:00:59]} Re5 {[%emt 0:00:14]} 39. Kd2 {[%emt 0:00:18]} Rd5 {[%emt 0:01:51]} 40. Rxc2 {[%emt 0:00:00]} Na4 {[%emt 0:00:00]} 41. Rc4 {[%emt 0:01:55]} Ra5 {[%emt 0:00:48]} 42. g6 {[%emt 0:01:00]} hxg6 {[%emt 0:00:27]} 43. hxg6 {[%emt 0:00:26]} Kf8 {[%emt 0:00:02]} 44. Bf3 {[%emt 0:01:39]} Ke7 {[%emt 0:00:50]} 45. Rc7+ {[%emt 0:01:49]} Kf6 {[%emt 0:00:09]} 46. Be4 {[%emt 0:00:47]} Rb5 {[%emt 0:01:05]} 47. Rf7+ {[%emt 0:01:21]} Ke5 {[%emt 0:00:08]} 48. Bf4+ {[%emt 0:00:21]} Kd4 {[%emt 0:00:06]} 49. Rd7+ {[%emt 0:00:30]} Kc5 {[%emt 0:00:07]} 50. Be3+ {[%emt 0:00:24]} Kb4 {[%emt 0:00:04]} 51. Rd4+ {[%emt 0:00:29]} Ka3 {[%emt 0:00:17]} 52. Rxa4+ {[%emt 0:00:36]} Kxa4 {[%emt 0:00:08]} 53. Bc6 {[%emt 0:00:07]} e5 {[%emt 0:00:07]} 54. d4 {[%emt 0:00:38]} 1-0

[Event "Hungarian Youth-ch U10 2022"]
[Site "Eger"]
[Date "2022.07.24"]
[Round "2.2"]
[White "Minga-Nagy, Abel Inti"]
[Black "Brieber, Benedek"]
[Result "1-0"]
[ECO "D00"]
[WhiteElo "1540"]
[BlackElo "1369"]
[Annotator "NA RC COMBH"]
[PlyCount "63"]
[EventDate "2022.07.21"]
[EventType "tourn"]
[EventCountry "HUN"]
[SourceTitle "playchess.com"]
[Source "ChessBase"]
[SourceQuality "1"]
[TimeControl "40/5400+30:1800+30"]

1. d4 {[%emt 0:00:42]} d5 {[%emt 0:00:50]} 2. Bf4 {[%emt 0:00:14]} Nc6 {[%emt 0:00:37]} 3. Nf3 {[%emt 0:00:24]} Bf5 {[%emt 0:00:36]} 4. c4 {[%emt 0:01:14]} e6 {[%emt 0:00:31]} 5. e3 {[%emt 0:01:41]} Nf6 {[%emt 0:01:26]} 6. Bd3 {[%emt 0:01:10]} Bb4+ {[%emt 0:03:32]} 7. Nc3 {[%emt 0:01:00]} Ne4 {[%emt 0:00:22]} 8. Bxe4 {[%emt 0:01:11]} Bxe4 {[%emt 0:00:42]} 9. O-O {[%emt 0:01:02]} Bf5 {[%emt 0:05:07]} 10. Ne5 {[%emt 0:02:35]} Nxe5 {[%emt 0:01:05]} 11. Bxe5 {[%emt 0:00:51]} Bd6 {[%emt 0:00:24]} 12. cxd5 {[%emt 0:01:29]} exd5 {[%emt 0:01:52]} 13. Nxd5 {[%emt 0:01:35]} Bxe5 {[%emt 0:00:26]} 14. dxe5 {[%emt 0:00:21]} O-O {[%emt 0:00:27]} 15. Qf3 {[%emt 0:01:16]} Be6 {[%emt 0:01:15]} 16. Rfd1 {[%emt 0:01:08]} Bxd5 {[%emt 0:00:59]} 17. Qxd5 {[%emt 0:00:25]} Qxd5 {[%emt 0:00:14]} 18. Rxd5 {[%emt 0:00:07]} Rfd8 {[%emt 0:01:40]} 19. Rad1 {[%emt 0:00:41]} Re8 {[%emt 0:01:03]} 20. f4 {[%emt 0:01:05]} Kf8 {[%emt 0:00:57]} 21. Rd7 {[%emt 0:00:29]} Rac8 {[%emt 0:00:16]} 22. Kf2 {[%emt 0:00:58]} b6 {[%emt 0:01:04]} 23. Kf3 {[%emt 0:01:10]} a5 {[%emt 0:00:23]} 24. Ke4 {[%emt 0:00:37]} c6 {[%emt 0:00:47]} 25. Rb7 {[%emt 0:00:50]} b5 {[%emt 0:00:10]} 26. Rdd7 {[%emt 0:00:14]} b4 {[%emt 0:01:10]} 27. Rxf7+ {[%emt 0:00:09]} Kg8 {[%emt 0:00:05]} 28. Rxg7+ {[%emt 0:00:07]} Kh8 {[%emt 0:00:08]} 29. Rxh7+ {[%emt 0:00:05]} Kg8 {[%emt 0:00:16]} 30. Rbg7+ {[%emt 0:00:12]} Kf8 {[%emt 0:00:20]} 31. Ra7 {[%emt 0:00:03]} c5 {[%emt 0:00:38]} 32. Rh8# 1-0

[Event "Hungarian Youth-ch U10 2022"]
[Site "Eger"]
[Date "2022.07.24"]
[Round "2.3"]
[White "Meszaros-Csonka, David"]
[Black "Hegedus, Zsombor"]
[Result "1-0"]
[ECO "C54"]
[WhiteElo "1361"]
[BlackElo "1348"]
[Annotator "NA RC COMBH"]
[PlyCount "92"]
[EventDate "2022.07.21"]
[EventType "tourn"]
[EventCountry "HUN"]
[SourceTitle "playchess.com"]
[Source "ChessBase"]
[SourceQuality "1"]
[TimeControl "40/5400+30:1800+30"]

1. e4 {[%emt 0:00:37]} e5 {[%emt 0:00:44]} 2. Nf3 {[%emt 0:00:33]} Nc6 {[%emt 0:00:50]} 3. Bc4 {[%emt 0:00:59]} Bc5 {[%emt 0:00:49]} 4. c3 {[%emt 0:00:58]} Nf6 {[%emt 0:01:41]} 5. d3 {[%emt 0:01:18]} h6 {[%emt 0:02:35]} 6. Nbd2 {[%emt 0:02:03]} d6 {[%emt 0:01:48]} 7. Bb3 {[%emt 0:01:50]} O-O {[%emt 0:02:21]} 8. O-O {[%emt 0:03:52]} Be6 {[%emt 0:03:40]} 9. Bc2 {[%emt 0:03:08]} a5 {[%emt 0:06:27]} 10. a4 {[%emt 0:04:44]} Bb6 {[%emt 0:08:11]} 11. Re1 {[%emt 0:07:42]} Qe7 {[%emt 0:04:10]} 12. h3 {[%emt 0:05:21]} Nh7 {[%emt 0:11:51]} 13. Nf1 {[%emt 0:09:40]} Qf6 {[%emt 0:09:00]} 14. Be3 {[%emt 0:09:34]} Bxe3 {[%emt 0:02:52]} 15. Nxe3 {[%emt 0:05:04]} Ng5 {[%emt 0:02:58]} 16. Nxg5 {[%emt 0:12:50]} Qxg5 {[%emt 0:04:09]} 17. Kh1 {[%emt 0:02:42]} Ne7 {[%emt 0:04:13]} 18. Bb3 {[%emt 0:06:50]} b6 {[%emt 0:09:58]} 19. Bxe6 {[%emt 0:03:44]} fxe6 {[%emt 0:00:16]} 20. Rf1 {[%emt 0:01:20]} Rf6 {[%emt 0:05:16]} 21. Qg4 {[%emt 0:02:55]} Qxg4 {[%emt 0:02:14]} 22. Nxg4 {[%emt 0:01:29]} Rf7 {[%emt 0:00:36]} 23. f3 {[%emt 0:01:13]} Ng6 {[%emt 0:00:54]} 24. g3 {[%emt 0:01:42]} h5 {[%emt 0:00:57]} 25. Ne3 {[%emt 0:00:28]} h4 {[%emt 0:00:31]} 26. Kg2 {[%emt 0:00:34]} hxg3 {[%emt 0:00:51]} 27. Kxg3 {[%emt 0:00:10]} Nf4 {[%emt 0:00:28]} 28. Rad1 {[%emt 0:01:07]} Raf8 {[%emt 0:00:44]} 29. Nc4 {[%emt 0:01:43]} Rf6 {[%emt 0:01:15]} 30. Kf2 {[%emt 0:03:21]} Rg6 {[%emt 0:01:41]} 31. Rd2 {[%emt 0:01:46]} Rg2+ {[%emt 0:01:02]} 32. Ke1 {[%emt 0:00:06]} Rxd2 {[%emt 0:00:24]} 33. Kxd2 {[%emt 0:00:07]} Nxh3 {[%emt 0:00:15]} 34. b4 {[%emt 0:01:25]} Ng5 {[%emt 0:01:11]} 35. Ke3 {[%emt 0:00:14]} axb4 {[%emt 0:00:27]} 36. cxb4 {[%emt 0:00:06]} Ra8 {[%emt 0:00:33]} 37. a5 {[%emt 0:02:32]} bxa5 {[%emt 0:00:17]} 38. bxa5 {[%emt 0:00:12]} d5 {[%emt 0:01:16]} 39. exd5 {[%emt 0:00:07]} exd5 {[%emt 0:00:13]} 40. Nxe5 {[%emt 0:00:00]} Rxa5 {[%emt 0:00:00]} 41. Rc1 {[%emt 0:02:51]} Ne6 {[%emt 0:02:19]} 42. Rc6 {[%emt 0:01:53]} d4+ {[%emt 0:01:51]} 43. Ke4 Ng5+ 44. Kf4 Nh3+ 45. Kf5 Nf2 46. Rxc7 Nh3 1-0